Department family,Entity,Date,Expense type,Expense area,Supplier,Transaction number,Amount
Department of Health,Leicestershire Partnership NHS Trust,03/08/20,Computer License  Fees,CHS - Head of Nursing,SOFTCAT PLC,INV02649726,46368.10
Department of Health,Leicestershire Partnership NHS Trust,03/08/20,Payroll Deductions -Salary Sacrifice Cars Scheme,Balance Sheet Collection,TUSKER,36658,27005.24
Department of Health,Leicestershire Partnership NHS Trust,04/08/20,Rent,"Syston Health Centre (New Building) (P127, LPT)",PHIP (5) LIMITED,LINV513961,37500.00
Department of Health,Leicestershire Partnership NHS Trust,04/08/20,External Data Processing / Storage,Records & information Governance,H COATES LTD/TA C&V DATA,4002154,33232.75
Department of Health,Leicestershire Partnership NHS Trust,06/08/20,Payroll Deductions -Home Electronics 46 July 20,Balance Sheet Collection,SME HCI LTD,132876,41159.30
Department of Health,Leicestershire Partnership NHS Trust,07/08/20,Unitary Payment,"The Agnes Unit (AKA Assessment and Treatment Centre) (P85, LPT)",ARDEN PARTNERSHIP (LEICESTER),SI0053,119490.64
Department of Health,Leicestershire Partnership NHS Trust,07/08/20,HR / Payroll Services,HR Employment Services,LINCOLNSHIRE PART NHSFT(RP7),2000020847,29360.83
Department of Health,Leicestershire Partnership NHS Trust,07/08/20,Nurse - Band 6 -Agency,CAMHS Waiting List Monies,HCL SOCIAL CARE,SI0001244,22577.18
Department of Health,Leicestershire Partnership NHS Trust,10/08/20,WIP Project Not in BS - Information Technology,Work in Progress,SERVELEC HEALTHCARE LTD,0070016938,32180.40
Department of Health,Leicestershire Partnership NHS Trust,10/08/20,External Consultancy Fees,Director of Finance,ATTAIN,4471,31916.60
Department of Health,Leicestershire Partnership NHS Trust,10/08/20,External Consultancy Fees,Director of Finance,ATTAIN,4469,26940.81
Department of Health,Leicestershire Partnership NHS Trust,10/08/20,External Consultancy Fees,Director of Finance,ATTAIN,4470,24300.00
Department of Health,Leicestershire Partnership NHS Trust,10/08/20,Furniture & Fittings,Quality Assurance,C HENRY & SONS,11358,28194.00
Department of Health,Leicestershire Partnership NHS Trust,10/08/20,Drugs,Adult City Drugs,JANSSEN-CILAG LTD,930673421,10773.89
Department of Health,Leicestershire Partnership NHS Trust,10/08/20,Drugs,Adult County Drugs,JANSSEN-CILAG LTD,930673421,16160.82
Department of Health,Leicestershire Partnership NHS Trust,12/08/20,Nurse - Band 6 -Agency,Adult City East CMHT - Merlyn Vaz,HCL NURSING,HNSI0000426,6441.64
Department of Health,Leicestershire Partnership NHS Trust,12/08/20,Nurse - Band 6 -Agency,Adult County Charnwood CMHT - Loughborough Base,HCL NURSING,HNSI0000426,1069.88
Department of Health,Leicestershire Partnership NHS Trust,12/08/20,NURSE - BAND 2 - AGENCY,Agnes Unit Management,HCL NURSING,HNSI0000426,2834.96
Department of Health,Leicestershire Partnership NHS Trust,12/08/20,NURSE - BAND 5 - AGENCY,Agnes Unit Management,HCL NURSING,HNSI0000426,3144.29
Department of Health,Leicestershire Partnership NHS Trust,12/08/20,Nurse - Band 6 -Agency,Assertive Outreach Services,HCL NURSING,HNSI0000426,1069.88
Department of Health,Leicestershire Partnership NHS Trust,12/08/20,NURSE - BAND 2 - AGENCY,Aston Ward (Bradgate Unit),HCL NURSING,HNSI0000426,209.42
Department of Health,Leicestershire Partnership NHS Trust,12/08/20,NURSE - BAND 2 - AGENCY,Beaumont Ward - Bradgate Unit,HCL NURSING,HNSI0000426,1532.60
Department of Health,Leicestershire Partnership NHS Trust,12/08/20,NURSE - BAND 5 - AGENCY,Beaumont Ward - Bradgate Unit,HCL NURSING,HNSI0000426,329.81
Department of Health,Leicestershire Partnership NHS Trust,12/08/20,NURSE - BAND 2 - AGENCY,Belvoir Psychiatric Intensive Care Unit,HCL NURSING,HNSI0000426,521.82
Department of Health,Leicestershire Partnership NHS Trust,12/08/20,Nurse - Band 6 -Agency,Crisis Resolution,HCL NURSING,HNSI0000426,4637.72
Department of Health,Leicestershire Partnership NHS Trust,12/08/20,NURSE - BAND 5 - AGENCY,Griffin Ward (HPC),HCL NURSING,HNSI0000426,1222.14
Department of Health,Leicestershire Partnership NHS Trust,12/08/20,NURSE - BAND 2 - AGENCY,Heather Ward,HCL NURSING,HNSI0000426,213.27
Department of Health,Leicestershire Partnership NHS Trust,12/08/20,Nurse - Band 6 -Agency,Leicestershire Psych-oncology Service,HCL NURSING,HNSI0000426,427.95
Department of Health,Leicestershire Partnership NHS Trust,12/08/20,Nurse - Band 6 -Agency,Mental Health Triage Team,HCL NURSING,HNSI0000426,2331.45
Department of Health,Leicestershire Partnership NHS Trust,12/08/20,NURSE - BAND 2 - AGENCY,Mill Lodge,HCL NURSING,HNSI0000426,704.08
Department of Health,Leicestershire Partnership NHS Trust,12/08/20,Nurse - Band 6 -Agency,Adult City East CMHT - Merlyn Vaz,HCL NURSING,HNSI0000434,3902.18
Department of Health,Leicestershire Partnership NHS Trust,12/08/20,Nurse - Band 6 -Agency,Adult County Charnwood CMHT - Loughborough Base,HCL NURSING,HNSI0000434,1283.85
Department of Health,Leicestershire Partnership NHS Trust,12/08/20,NURSE - BAND 2 - AGENCY,Agnes Unit Management,HCL NURSING,HNSI0000434,4185.38
Department of Health,Leicestershire Partnership NHS Trust,12/08/20,NURSE - BAND 5 - AGENCY,Agnes Unit Management,HCL NURSING,HNSI0000434,4273.47
Department of Health,Leicestershire Partnership NHS Trust,12/08/20,NURSE - BAND 2 - AGENCY,Ashby Ward (Bradgate Unit),HCL NURSING,HNSI0000434,532.37
Department of Health,Leicestershire Partnership NHS Trust,12/08/20,Nurse - Band 6 -Agency,Assertive Outreach Services,HCL NURSING,HNSI0000434,1069.88
Department of Health,Leicestershire Partnership NHS Trust,12/08/20,NURSE - BAND 5 - AGENCY,Aston Ward (Bradgate Unit),HCL NURSING,HNSI0000434,686.67
Department of Health,Leicestershire Partnership NHS Trust,12/08/20,NURSE - BAND 2 - AGENCY,Beaumont Ward - Bradgate Unit,HCL NURSING,HNSI0000434,2164.47
Department of Health,Leicestershire Partnership NHS Trust,12/08/20,NURSE - BAND 5 - AGENCY,Beaumont Ward - Bradgate Unit,HCL NURSING,HNSI0000434,266.74
Department of Health,Leicestershire Partnership NHS Trust,12/08/20,NURSE - BAND 2 - AGENCY,Belvoir Psychiatric Intensive Care Unit,HCL NURSING,HNSI0000434,341.32
Department of Health,Leicestershire Partnership NHS Trust,12/08/20,NURSE - BAND 5 - AGENCY,Belvoir Psychiatric Intensive Care Unit,HCL NURSING,HNSI0000434,700.19
Department of Health,Leicestershire Partnership NHS Trust,12/08/20,Nurse - Band 6 -Agency,Crisis Resolution,HCL NURSING,HNSI0000434,5211.23
Department of Health,Leicestershire Partnership NHS Trust,12/08/20,NURSE - BAND 5 - AGENCY,Griffin Ward (HPC),HCL NURSING,HNSI0000434,1511.75
Department of Health,Leicestershire Partnership NHS Trust,12/08/20,NURSE - BAND 5 - AGENCY,Heather Ward,HCL NURSING,HNSI0000434,533.48
Department of Health,Leicestershire Partnership NHS Trust,12/08/20,Nurse - Band 6 -Agency,Leicestershire Psych-oncology Service,HCL NURSING,HNSI0000434,427.95
Department of Health,Leicestershire Partnership NHS Trust,12/08/20,NURSE - BAND 2 - AGENCY,Maple Ward,HCL NURSING,HNSI0000434,213.27
Department of Health,Leicestershire Partnership NHS Trust,12/08/20,Nurse - Band 6 -Agency,Mental Health Triage Team,HCL NURSING,HNSI0000434,2553.12
Department of Health,Leicestershire Partnership NHS Trust,12/08/20,NURSE - BAND 2 - AGENCY,Stewart House,HCL NURSING,HNSI0000434,119.48
Department of Health,Leicestershire Partnership NHS Trust,12/08/20,NURSE - BAND 2 - AGENCY,Thornton Ward - Bradgate Unit,HCL NURSING,HNSI0000434,336.02
Department of Health,Leicestershire Partnership NHS Trust,12/08/20,NURSE - BAND 2 - AGENCY,Watermead Ward (Bradgate Unit),HCL NURSING,HNSI0000434,204.92
Department of Health,Leicestershire Partnership NHS Trust,12/08/20,NURSE - BAND 5 - AGENCY,Watermead Ward (Bradgate Unit),HCL NURSING,HNSI0000434,329.81
Department of Health,Leicestershire Partnership NHS Trust,12/08/20,Nurse - Band 6 -Agency,Adult City East CMHT - Merlyn Vaz,HCL NURSING,HNSI0000442,8645.81
Department of Health,Leicestershire Partnership NHS Trust,12/08/20,Nurse - Band 6 -Agency,Adult County West Leicestershire CMHT,HCL NURSING,HNSI0000442,2139.75
Department of Health,Leicestershire Partnership NHS Trust,12/08/20,NURSE - BAND 2 - AGENCY,Agnes Unit Management,HCL NURSING,HNSI0000442,6981.26
Department of Health,Leicestershire Partnership NHS Trust,12/08/20,NURSE - BAND 5 - AGENCY,Agnes Unit Management,HCL NURSING,HNSI0000442,5627.45
Department of Health,Leicestershire Partnership NHS Trust,12/08/20,NURSE - BAND 2 - AGENCY,Ashby Ward (Bradgate Unit),HCL NURSING,HNSI0000442,238.94
Department of Health,Leicestershire Partnership NHS Trust,12/08/20,Nurse - Band 6 -Agency,Assertive Outreach Services,HCL NURSING,HNSI0000442,1069.88
Department of Health,Leicestershire Partnership NHS Trust,12/08/20,NURSE - BAND 2 - AGENCY,Aston Ward (Bradgate Unit),HCL NURSING,HNSI0000442,135.52
Department of Health,Leicestershire Partnership NHS Trust,12/08/20,NURSE - BAND 5 - AGENCY,Aston Ward (Bradgate Unit),HCL NURSING,HNSI0000442,1093.08
Department of Health,Leicestershire Partnership NHS Trust,12/08/20,NURSE - BAND 2 - AGENCY,Beaumont Ward - Bradgate Unit,HCL NURSING,HNSI0000442,2152.71
Department of Health,Leicestershire Partnership NHS Trust,12/08/20,NURSE - BAND 5 - AGENCY,Beaumont Ward - Bradgate Unit,HCL NURSING,HNSI0000442,655.60
Department of Health,Leicestershire Partnership NHS Trust,12/08/20,NURSE - BAND 5 - AGENCY,Belvoir Psychiatric Intensive Care Unit,HCL NURSING,HNSI0000442,1351.09
Department of Health,Leicestershire Partnership NHS Trust,12/08/20,Nurse - Band 6 -Agency,Crisis Resolution,HCL NURSING,HNSI0000442,1645.22
Department of Health,Leicestershire Partnership NHS Trust,12/08/20,NURSE - BAND 5 - AGENCY,Griffin Ward (HPC),HCL NURSING,HNSI0000442,1222.14
Department of Health,Leicestershire Partnership NHS Trust,12/08/20,NURSE - BAND 2 - AGENCY,Heather Ward,HCL NURSING,HNSI0000442,976.86
Department of Health,Leicestershire Partnership NHS Trust,12/08/20,NURSE - BAND 5 - AGENCY,Heather Ward,HCL NURSING,HNSI0000442,370.38
Department of Health,Leicestershire Partnership NHS Trust,12/08/20,Nurse - Band 6 -Agency,Mental Health Triage Team,HCL NURSING,HNSI0000442,1087.76
Department of Health,Leicestershire Partnership NHS Trust,12/08/20,NURSE - BAND 2 - AGENCY,Mill Lodge,HCL NURSING,HNSI0000442,801.85
Department of Health,Leicestershire Partnership NHS Trust,12/08/20,NURSE - BAND 5 - AGENCY,Mill Lodge,HCL NURSING,HNSI0000442,287.92
Department of Health,Leicestershire Partnership NHS Trust,12/08/20,NURSE - BAND 2 - AGENCY,Place Of Safety Assessment Unit,HCL NURSING,HNSI0000442,408.86
Department of Health,Leicestershire Partnership NHS Trust,12/08/20,NURSE - BAND 2 - AGENCY,Stewart House,HCL NURSING,HNSI0000442,119.48
Department of Health,Leicestershire Partnership NHS Trust,12/08/20,NURSE - BAND 2 - AGENCY,Sycamore (Willows),HCL NURSING,HNSI0000442,145.19
Department of Health,Leicestershire Partnership NHS Trust,12/08/20,NURSE - BAND 5 - AGENCY,Watermead Ward (Bradgate Unit),HCL NURSING,HNSI0000442,916.70
Department of Health,Leicestershire Partnership NHS Trust,13/08/20,NURSE - BAND 5 - AGENCY,City Planned Care - East,HCL NURSING,HNSI0000448,21833.63
Department of Health,Leicestershire Partnership NHS Trust,13/08/20,NURSE - BAND 5 - AGENCY,City Planned Care - West,HCL NURSING,HNSI0000448,11577.78
Department of Health,Leicestershire Partnership NHS Trust,13/08/20,Nurse - Band 6 -Agency,City West CMHT MHSOP,HCL NURSING,HNSI0000448,1902.06
Department of Health,Leicestershire Partnership NHS Trust,13/08/20,NURSE - BAND 2 - AGENCY,Clarendon Ward,HCL NURSING,HNSI0000448,708.61
Department of Health,Leicestershire Partnership NHS Trust,13/08/20,NURSE - BAND 2 - AGENCY,Coalville Snibston Ward,HCL NURSING,HNSI0000448,426.54
Department of Health,Leicestershire Partnership NHS Trust,13/08/20,NURSE - BAND 5 - AGENCY,Coalville Snibston Ward,HCL NURSING,HNSI0000448,681.51
Department of Health,Leicestershire Partnership NHS Trust,13/08/20,NURSE - BAND 2 - AGENCY,Coalville Ward 2,HCL NURSING,HNSI0000448,640.04
Department of Health,Leicestershire Partnership NHS Trust,13/08/20,NURSE - BAND 5 - AGENCY,Coalville Ward 2,HCL NURSING,HNSI0000448,419.12
Department of Health,Leicestershire Partnership NHS Trust,13/08/20,NURSE - BAND 5 - AGENCY,Coleman Ward,HCL NURSING,HNSI0000448,4429.76
Department of Health,Leicestershire Partnership NHS Trust,13/08/20,NURSE - BAND 5 - AGENCY,Dalgliesh Ward,HCL NURSING,HNSI0000448,778.95
Department of Health,Leicestershire Partnership NHS Trust,13/08/20,NURSE - BAND 5 - AGENCY,"East Planned Care - Oadby,Wigston & Harborough",HCL NURSING,HNSI0000448,432.69
Department of Health,Leicestershire Partnership NHS Trust,13/08/20,NURSE - BAND 2 - AGENCY,Gwendolen Ward,HCL NURSING,HNSI0000448,295.61
Department of Health,Leicestershire Partnership NHS Trust,13/08/20,NURSE - BAND 5 - AGENCY,Gwendolen Ward,HCL NURSING,HNSI0000448,615.30
Department of Health,Leicestershire Partnership NHS Trust,13/08/20,NURSE - BAND 2 - AGENCY,Kirby Ward,HCL NURSING,HNSI0000448,195.47
Department of Health,Leicestershire Partnership NHS Trust,13/08/20,NURSE - BAND 5 - AGENCY,Kirby Ward,HCL NURSING,HNSI0000448,605.16
Department of Health,Leicestershire Partnership NHS Trust,13/08/20,NURSE - BAND 5 - AGENCY,Lough Swithland Ward,HCL NURSING,HNSI0000448,370.38
Department of Health,Leicestershire Partnership NHS Trust,13/08/20,NURSE - BAND 5 - AGENCY,Rutland Ward Nursing,HCL NURSING,HNSI0000448,266.75
Department of Health,Leicestershire Partnership NHS Trust,13/08/20,NURSE - BAND 2 - AGENCY,St Lukes Stroke Ward,HCL NURSING,HNSI0000448,324.04
Department of Health,Leicestershire Partnership NHS Trust,13/08/20,NURSE - BAND 2 - AGENCY,St Lukes Ward 3,HCL NURSING,HNSI0000448,495.34
Department of Health,Leicestershire Partnership NHS Trust,13/08/20,NURSE - BAND 5 - AGENCY,St Lukes Ward 3,HCL NURSING,HNSI0000448,2643.25
Department of Health,Leicestershire Partnership NHS Trust,13/08/20,NURSE - BAND 2 - AGENCY,Wakerley Ward,HCL NURSING,HNSI0000448,201.01
Department of Health,Leicestershire Partnership NHS Trust,13/08/20,NURSE - BAND 5 - AGENCY,Wakerley Ward,HCL NURSING,HNSI0000448,4055.05
Department of Health,Leicestershire Partnership NHS Trust,13/08/20,NURSE - BAND 2 - AGENCY,Welford Ward,HCL NURSING,HNSI0000448,390.95
Department of Health,Leicestershire Partnership NHS Trust,13/08/20,NURSE - BAND 5 - AGENCY,Welford Ward,HCL NURSING,HNSI0000448,505.94
Department of Health,Leicestershire Partnership NHS Trust,13/08/20,Other Non-Medical Supplies & Services,Inter Unit I & E Distribution,UHL NHS TRUST (RWE),L0243830,150820.00
Department of Health,Leicestershire Partnership NHS Trust,14/08/20,CHP Estates Management,"St Peters Health Center (Part 1st and 2nd floors) (P66, LPT)",COMM HLTH PARTNERSHIPS LTD,0060163836,103066.08
Department of Health,Leicestershire Partnership NHS Trust,17/08/20,NURSE - BAND 2 - AGENCY,Acacia (Willows),HCL NURSING,HNSI0000447,164.98
Department of Health,Leicestershire Partnership NHS Trust,17/08/20,Nurse - Band 6 -Agency,Adult City East CMHT - Merlyn Vaz,HCL NURSING,HNSI0000447,5220.15
Department of Health,Leicestershire Partnership NHS Trust,17/08/20,Nurse - Band 6 -Agency,Adult County Charnwood CMHT - Loughborough Base,HCL NURSING,HNSI0000447,1069.88
Department of Health,Leicestershire Partnership NHS Trust,17/08/20,Nurse - Band 6 -Agency,Adult County West Leicestershire CMHT,HCL NURSING,HNSI0000447,1069.88
Department of Health,Leicestershire Partnership NHS Trust,17/08/20,NURSE - BAND 2 - AGENCY,Agnes Unit Management,HCL NURSING,HNSI0000447,3834.19
Department of Health,Leicestershire Partnership NHS Trust,17/08/20,NURSE - BAND 5 - AGENCY,Agnes Unit Management,HCL NURSING,HNSI0000447,3490.58
Department of Health,Leicestershire Partnership NHS Trust,17/08/20,NURSE - BAND 2 - AGENCY,Ashby Ward (Bradgate Unit),HCL NURSING,HNSI0000447,562.71
Department of Health,Leicestershire Partnership NHS Trust,17/08/20,NURSE - BAND 5 - AGENCY,Ashby Ward (Bradgate Unit),HCL NURSING,HNSI0000447,659.63
Department of Health,Leicestershire Partnership NHS Trust,17/08/20,NURSE - BAND 5 - AGENCY,Aston Ward (Bradgate Unit),HCL NURSING,HNSI0000447,329.81
Department of Health,Leicestershire Partnership NHS Trust,17/08/20,NURSE - BAND 2 - AGENCY,Beaumont Ward - Bradgate Unit,HCL NURSING,HNSI0000447,213.27
Department of Health,Leicestershire Partnership NHS Trust,17/08/20,NURSE - BAND 5 - AGENCY,Belvoir Psychiatric Intensive Care Unit,HCL NURSING,HNSI0000447,346.72
Department of Health,Leicestershire Partnership NHS Trust,17/08/20,Nurse - Band 6 -Agency,Crisis Resolution,HCL NURSING,HNSI0000447,2755.96
Department of Health,Leicestershire Partnership NHS Trust,17/08/20,NURSE - BAND 2 - AGENCY,Griffin Ward (HPC),HCL NURSING,HNSI0000447,1053.71
Department of Health,Leicestershire Partnership NHS Trust,17/08/20,NURSE - BAND 5 - AGENCY,Griffin Ward (HPC),HCL NURSING,HNSI0000447,877.29
Department of Health,Leicestershire Partnership NHS Trust,17/08/20,NURSE - BAND 2 - AGENCY,Heather Ward,HCL NURSING,HNSI0000447,103.39
Department of Health,Leicestershire Partnership NHS Trust,17/08/20,NURSE - BAND 5 - AGENCY,Heather Ward,HCL NURSING,HNSI0000447,370.38
Department of Health,Leicestershire Partnership NHS Trust,17/08/20,Nurse - Band 6 -Agency,Mental Health Triage Team,HCL NURSING,HNSI0000447,2415.69
Department of Health,Leicestershire Partnership NHS Trust,17/08/20,NURSE - BAND 2 - AGENCY,Mill Lodge,HCL NURSING,HNSI0000447,210.46
Department of Health,Leicestershire Partnership NHS Trust,17/08/20,NURSE - BAND 5 - AGENCY,Mill Lodge,HCL NURSING,HNSI0000447,175.87
Department of Health,Leicestershire Partnership NHS Trust,17/08/20,NURSE - BAND 2 - AGENCY,Phoenix Ward (HPC),HCL NURSING,HNSI0000447,277.94
Department of Health,Leicestershire Partnership NHS Trust,17/08/20,NURSE - BAND 2 - AGENCY,Place Of Safety Assessment Unit,HCL NURSING,HNSI0000447,174.73
Department of Health,Leicestershire Partnership NHS Trust,17/08/20,NURSE - BAND 2 - AGENCY,Stewart House,HCL NURSING,HNSI0000447,313.09
Department of Health,Leicestershire Partnership NHS Trust,17/08/20,NURSE - BAND 2 - AGENCY,Thornton Ward - Bradgate Unit,HCL NURSING,HNSI0000447,223.60
Department of Health,Leicestershire Partnership NHS Trust,17/08/20,NURSE - BAND 5 - AGENCY,Watermead Ward (Bradgate Unit),HCL NURSING,HNSI0000447,613.46
Department of Health,Leicestershire Partnership NHS Trust,17/08/20,NURSE - BAND 2 - AGENCY,Beechwood Ward,HCL NURSING,HNSI0000452,1313.09
Department of Health,Leicestershire Partnership NHS Trust,17/08/20,NURSE - BAND 5 - AGENCY,City Planned Care - East,HCL NURSING,HNSI0000452,21358.28
Department of Health,Leicestershire Partnership NHS Trust,17/08/20,NURSE - BAND 5 - AGENCY,City Planned Care - West,HCL NURSING,HNSI0000452,7326.21
Department of Health,Leicestershire Partnership NHS Trust,17/08/20,Nurse - Band 6 -Agency,City West CMHT MHSOP,HCL NURSING,HNSI0000452,2330.01
Department of Health,Leicestershire Partnership NHS Trust,17/08/20,NURSE - BAND 2 - AGENCY,Clarendon Ward,HCL NURSING,HNSI0000452,775.38
Department of Health,Leicestershire Partnership NHS Trust,17/08/20,NURSE - BAND 5 - AGENCY,Clarendon Ward,HCL NURSING,HNSI0000452,339.96
Department of Health,Leicestershire Partnership NHS Trust,17/08/20,NURSE - BAND 2 - AGENCY,Coalville Snibston Ward,HCL NURSING,HNSI0000452,1236.31
Department of Health,Leicestershire Partnership NHS Trust,17/08/20,NURSE - BAND 5 - AGENCY,Coalville Snibston Ward,HCL NURSING,HNSI0000452,291.48
Department of Health,Leicestershire Partnership NHS Trust,17/08/20,NURSE - BAND 2 - AGENCY,Coalville Ward 2,HCL NURSING,HNSI0000452,219.46
Department of Health,Leicestershire Partnership NHS Trust,17/08/20,NURSE - BAND 5 - AGENCY,Coalville Ward 2,HCL NURSING,HNSI0000452,1835.24
Department of Health,Leicestershire Partnership NHS Trust,17/08/20,NURSE - BAND 2 - AGENCY,Coleman Ward,HCL NURSING,HNSI0000452,371.82
Department of Health,Leicestershire Partnership NHS Trust,17/08/20,NURSE - BAND 5 - AGENCY,Coleman Ward,HCL NURSING,HNSI0000452,2583.07
Department of Health,Leicestershire Partnership NHS Trust,17/08/20,NURSE - BAND 2 - AGENCY,Dalgliesh Ward,HCL NURSING,HNSI0000452,387.33
Department of Health,Leicestershire Partnership NHS Trust,17/08/20,NURSE - BAND 5 - AGENCY,Dalgliesh Ward,HCL NURSING,HNSI0000452,1017.26
Department of Health,Leicestershire Partnership NHS Trust,17/08/20,NURSE - BAND 5 - AGENCY,"East Planned Care - Oadby,Wigston & Harborough",HCL NURSING,HNSI0000452,5873.07
Department of Health,Leicestershire Partnership NHS Trust,17/08/20,NURSE - BAND 2 - AGENCY,Gwendolen Ward,HCL NURSING,HNSI0000452,1420.75
Department of Health,Leicestershire Partnership NHS Trust,17/08/20,NURSE - BAND 5 - AGENCY,Gwendolen Ward,HCL NURSING,HNSI0000452,1773.60
Department of Health,Leicestershire Partnership NHS Trust,17/08/20,NURSE - BAND 2 - AGENCY,Kirby Ward,HCL NURSING,HNSI0000452,328.97
Department of Health,Leicestershire Partnership NHS Trust,17/08/20,NURSE - BAND 5 - AGENCY,Kirby Ward,HCL NURSING,HNSI0000452,2387.16
Department of Health,Leicestershire Partnership NHS Trust,17/08/20,NURSE - BAND 5 - AGENCY,Lough Swithland Ward,HCL NURSING,HNSI0000452,406.23
Department of Health,Leicestershire Partnership NHS Trust,17/08/20,NURSE - BAND 2 - AGENCY,Rutland Ward Nursing,HCL NURSING,HNSI0000452,105.94
Department of Health,Leicestershire Partnership NHS Trust,17/08/20,NURSE - BAND 2 - AGENCY,St Lukes Stroke Ward,HCL NURSING,HNSI0000452,236.45
Department of Health,Leicestershire Partnership NHS Trust,17/08/20,NURSE - BAND 5 - AGENCY,St Lukes Stroke Ward,HCL NURSING,HNSI0000452,918.47
Department of Health,Leicestershire Partnership NHS Trust,17/08/20,NURSE - BAND 2 - AGENCY,St Lukes Ward 3,HCL NURSING,HNSI0000452,325.37
Department of Health,Leicestershire Partnership NHS Trust,17/08/20,NURSE - BAND 5 - AGENCY,St Lukes Ward 3,HCL NURSING,HNSI0000452,1264.21
Department of Health,Leicestershire Partnership NHS Trust,17/08/20,NURSE - BAND 2 - AGENCY,Wakerley Ward,HCL NURSING,HNSI0000452,1476.64
Department of Health,Leicestershire Partnership NHS Trust,17/08/20,NURSE - BAND 5 - AGENCY,Wakerley Ward,HCL NURSING,HNSI0000452,3556.95
Department of Health,Leicestershire Partnership NHS Trust,17/08/20,NURSE - BAND 2 - AGENCY,Welford Ward,HCL NURSING,HNSI0000452,234.61
Department of Health,Leicestershire Partnership NHS Trust,17/08/20,NURSE - BAND 5 - AGENCY,Welford Ward,HCL NURSING,HNSI0000452,282.94
Department of Health,Leicestershire Partnership NHS Trust,17/08/20,NURSE - BAND 5 - AGENCY,West Planned Care  - Charnwood Hub,HCL NURSING,HNSI0000452,172.94
Department of Health,Leicestershire Partnership NHS Trust,17/08/20,Nurse - Band 6 -Agency,Adult City East CMHT - Merlyn Vaz,HCL NURSING,HNSI0000451,3176.16
Department of Health,Leicestershire Partnership NHS Trust,17/08/20,Nurse - Band 6 -Agency,Adult County Charnwood CMHT - Loughborough Base,HCL NURSING,HNSI0000451,1069.88
Department of Health,Leicestershire Partnership NHS Trust,17/08/20,Nurse - Band 6 -Agency,Adult County West Leicestershire CMHT,HCL NURSING,HNSI0000451,1069.88
Department of Health,Leicestershire Partnership NHS Trust,17/08/20,NURSE - BAND 2 - AGENCY,Agnes Unit Management,HCL NURSING,HNSI0000451,7515.26
Department of Health,Leicestershire Partnership NHS Trust,17/08/20,NURSE - BAND 5 - AGENCY,Agnes Unit Management,HCL NURSING,HNSI0000451,3015.42
Department of Health,Leicestershire Partnership NHS Trust,17/08/20,Nurse - Band 6 -Agency,Assertive Outreach Services,HCL NURSING,HNSI0000451,2139.75
Department of Health,Leicestershire Partnership NHS Trust,17/08/20,NURSE - BAND 2 - AGENCY,Aston Ward (Bradgate Unit),HCL NURSING,HNSI0000451,369.20
Department of Health,Leicestershire Partnership NHS Trust,17/08/20,NURSE - BAND 5 - AGENCY,Aston Ward (Bradgate Unit),HCL NURSING,HNSI0000451,329.81
Department of Health,Leicestershire Partnership NHS Trust,17/08/20,NURSE - BAND 2 - AGENCY,Beaumont Ward - Bradgate Unit,HCL NURSING,HNSI0000451,1662.04
Department of Health,Leicestershire Partnership NHS Trust,17/08/20,NURSE - BAND 5 - AGENCY,Beaumont Ward - Bradgate Unit,HCL NURSING,HNSI0000451,320.14
Department of Health,Leicestershire Partnership NHS Trust,17/08/20,NURSE - BAND 2 - AGENCY,Belvoir Psychiatric Intensive Care Unit,HCL NURSING,HNSI0000451,808.26
Department of Health,Leicestershire Partnership NHS Trust,17/08/20,NURSE - BAND 5 - AGENCY,Belvoir Psychiatric Intensive Care Unit,HCL NURSING,HNSI0000451,1753.18
Department of Health,Leicestershire Partnership NHS Trust,17/08/20,Nurse - Band 6 -Agency,Crisis Resolution,HCL NURSING,HNSI0000451,4836.34
Department of Health,Leicestershire Partnership NHS Trust,17/08/20,NURSE - BAND 5 - AGENCY,Griffin Ward (HPC),HCL NURSING,HNSI0000451,2497.48
Department of Health,Leicestershire Partnership NHS Trust,17/08/20,NURSE - BAND 5 - AGENCY,Heather Ward,HCL NURSING,HNSI0000451,1057.05
Department of Health,Leicestershire Partnership NHS Trust,17/08/20,Nurse - Band 6 -Agency,Leicestershire Psych-oncology Service,HCL NURSING,HNSI0000451,427.95
Department of Health,Leicestershire Partnership NHS Trust,17/08/20,NURSE - BAND 2 - AGENCY,Maple Ward,HCL NURSING,HNSI0000451,174.73
Department of Health,Leicestershire Partnership NHS Trust,17/08/20,Nurse - Band 6 -Agency,Mental Health Triage Team,HCL NURSING,HNSI0000451,3389.15
Department of Health,Leicestershire Partnership NHS Trust,17/08/20,NURSE - BAND 2 - AGENCY,Mill Lodge,HCL NURSING,HNSI0000451,225.16
Department of Health,Leicestershire Partnership NHS Trust,17/08/20,NURSE - BAND 5 - AGENCY,Mill Lodge,HCL NURSING,HNSI0000451,287.92
Department of Health,Leicestershire Partnership NHS Trust,17/08/20,NURSE - BAND 2 - AGENCY,Phoenix Ward (HPC),HCL NURSING,HNSI0000451,174.73
Department of Health,Leicestershire Partnership NHS Trust,17/08/20,NURSE - BAND 2 - AGENCY,Place Of Safety Assessment Unit,HCL NURSING,HNSI0000451,369.87
Department of Health,Leicestershire Partnership NHS Trust,17/08/20,NURSE - BAND 2 - AGENCY,Stewart House,HCL NURSING,HNSI0000451,722.36
Department of Health,Leicestershire Partnership NHS Trust,17/08/20,NURSE - BAND 2 - AGENCY,Sycamore (Willows),HCL NURSING,HNSI0000451,174.73
Department of Health,Leicestershire Partnership NHS Trust,17/08/20,NURSE - BAND 2 - AGENCY,Thornton Ward - Bradgate Unit,HCL NURSING,HNSI0000451,103.39
Department of Health,Leicestershire Partnership NHS Trust,17/08/20,NURSE - BAND 2 - AGENCY,Watermead Ward (Bradgate Unit),HCL NURSING,HNSI0000451,453.60
Department of Health,Leicestershire Partnership NHS Trust,17/08/20,NURSE - BAND 5 - AGENCY,Watermead Ward (Bradgate Unit),HCL NURSING,HNSI0000451,370.38
Department of Health,Leicestershire Partnership NHS Trust,17/08/20,NURSE - BAND 2 - AGENCY,CAMHS Inpatient Service,HCL NURSING,HNSI0000453,10453.87
Department of Health,Leicestershire Partnership NHS Trust,17/08/20,NURSE - BAND 5 - AGENCY,CAMHS Inpatient Service,HCL NURSING,HNSI0000453,1088.21
Department of Health,Leicestershire Partnership NHS Trust,17/08/20,Nurse - Band 6 -Agency,CAMHS Waiting List Monies,HCL NURSING,HNSI0000453,7788.13
Department of Health,Leicestershire Partnership NHS Trust,17/08/20,NURSE - BAND 2 - AGENCY,Langley Ward ED Inpatient Service,HCL NURSING,HNSI0000453,180.21
Department of Health,Leicestershire Partnership NHS Trust,17/08/20,NURSE - BAND 5 - AGENCY,Langley Ward ED Inpatient Service,HCL NURSING,HNSI0000453,2096.58
Department of Health,Leicestershire Partnership NHS Trust,17/08/20,Insurance Costs,Chief Executives Office,NHS LITIGATION AUTHORITY,SICX402626,141476.10
Department of Health,Leicestershire Partnership NHS Trust,17/08/20,Nurse - Band 6 -Agency,CAMHS Waiting List Monies,HCL SOCIAL CARE,HJSI0000007,22748.97
Department of Health,Leicestershire Partnership NHS Trust,17/08/20,Computer Software,HIS,FUSION BUSINESS SOLUTIONS (UK),0000026749,25624.13
Department of Health,Leicestershire Partnership NHS Trust,18/08/20,Printing Costs,COVID 19,CUBIQUITY LTD,I/83584,35667.50
Department of Health,Leicestershire Partnership NHS Trust,19/08/20,Computer Software,HIS,SOFTCAT PLC,INV02660698,111218.93
Department of Health,Leicestershire Partnership NHS Trust,19/08/20,Mobile Telephone Rental / Calls,Specific Unit Budget Reserves,VODAFONE CORPORATE LTD,000095614451,108724.10
Department of Health,Leicestershire Partnership NHS Trust,19/08/20,Landline Telephone Rental / Calls,Information Services,VIRGIN MEDIA BUSINESS,919266-118,41314.01
Department of Health,Leicestershire Partnership NHS Trust,20/08/20,Medical Equipment Repairs / Maintenance,Medical Devices Maintenance (LPT),SUPPLY CHAIN CO LTD,2121002808,49517.09
Department of Health,Leicestershire Partnership NHS Trust,20/08/20,Med GP Trainees,Medical Trainees,ST.HELENS & KNOWSLEY NHS TRUST,16798590,75000.00
Department of Health,Leicestershire Partnership NHS Trust,20/08/20,FP10'S,Adult City Drugs,NHS BUS SERVICES AUTHORITY,1000066179,12497.92
Department of Health,Leicestershire Partnership NHS Trust,20/08/20,FP10'S,Adult County Drugs,NHS BUS SERVICES AUTHORITY,1000066179,31146.56
Department of Health,Leicestershire Partnership NHS Trust,20/08/20,FP10'S,CAMHS Outpatients,NHS BUS SERVICES AUTHORITY,1000066179,11908.28
Department of Health,Leicestershire Partnership NHS Trust,20/08/20,FP10'S,Children Services Medical,NHS BUS SERVICES AUTHORITY,1000066179,7467.57
Department of Health,Leicestershire Partnership NHS Trust,20/08/20,FP10'S,Dementia Related Drugs and Investigations,NHS BUS SERVICES AUTHORITY,1000066179,4876.17
Department of Health,Leicestershire Partnership NHS Trust,20/08/20,FP10'S,Eating Disorders Outpatient Service,NHS BUS SERVICES AUTHORITY,1000066179,606.61
Department of Health,Leicestershire Partnership NHS Trust,20/08/20,FP10'S,Forensic Services - Community,NHS BUS SERVICES AUTHORITY,1000066179,228.24
Department of Health,Leicestershire Partnership NHS Trust,20/08/20,FP10'S,LOROS Pharmacy,NHS BUS SERVICES AUTHORITY,1000066179,585.17
Department of Health,Leicestershire Partnership NHS Trust,20/08/20,FP10'S,Leicestershire Psych-oncology Service,NHS BUS SERVICES AUTHORITY,1000066179,22.53
Department of Health,Leicestershire Partnership NHS Trust,20/08/20,FP10'S,Liason Psychiatry Service,NHS BUS SERVICES AUTHORITY,1000066179,209.66
Department of Health,Leicestershire Partnership NHS Trust,20/08/20,FP10'S,Lough Swithland Ward,NHS BUS SERVICES AUTHORITY,1000066179,7.38
Department of Health,Leicestershire Partnership NHS Trust,20/08/20,FP10'S,PIER Team - Early Intervention Services,NHS BUS SERVICES AUTHORITY,1000066179,9127.75
Department of Health,Leicestershire Partnership NHS Trust,20/08/20,FP10'S,Snr Med Staff (Inc Med Reps),NHS BUS SERVICES AUTHORITY,1000066179,4507.46
Department of Health,Leicestershire Partnership NHS Trust,21/08/20,Landline Telephone Rental / Calls,"Beaumont Leys Health Centre (P94, LPT)",VIRGIN MEDIA BUSINESS,853083001/004/0820,427.01
Department of Health,Leicestershire Partnership NHS Trust,21/08/20,Landline Telephone Rental / Calls,Belgrave Health Centre (CHP),VIRGIN MEDIA BUSINESS,853083001/004/0820,294.99
Department of Health,Leicestershire Partnership NHS Trust,21/08/20,Landline Telephone Rental / Calls,"Bennion Centre (including Forest Grange Day Unit) (P8, LPT)",VIRGIN MEDIA BUSINESS,853083001/004/0820,7.74
Department of Health,Leicestershire Partnership NHS Trust,21/08/20,Landline Telephone Rental / Calls,"Bradgate Unit (including Glenvale day Unit) (P7, LPT)",VIRGIN MEDIA BUSINESS,853083001/004/0820,9410.44
Department of Health,Leicestershire Partnership NHS Trust,21/08/20,Landline Telephone Rental / Calls,Braunstone Health and Social Care Centre (Part) (PROPCO),VIRGIN MEDIA BUSINESS,853083001/004/0820,1029.05
Department of Health,Leicestershire Partnership NHS Trust,21/08/20,Landline Telephone Rental / Calls,Bridge Park Plaza - First Floor (LPT),VIRGIN MEDIA BUSINESS,853083001/004/0820,3049.51
Department of Health,Leicestershire Partnership NHS Trust,21/08/20,Landline Telephone Rental / Calls,"Coalville Community Hospital (P138, LPT)",VIRGIN MEDIA BUSINESS,853083001/004/0820,1384.70
Department of Health,Leicestershire Partnership NHS Trust,21/08/20,Landline Telephone Rental / Calls,"Coalville Health Centre (P121, LPT)",VIRGIN MEDIA BUSINESS,853083001/004/0820,129.23
Department of Health,Leicestershire Partnership NHS Trust,21/08/20,Landline Telephone Rental / Calls,County Hall,VIRGIN MEDIA BUSINESS,853083001/004/0820,1184.45
Department of Health,Leicestershire Partnership NHS Trust,21/08/20,Landline Telephone Rental / Calls,Estates & Facilities Central,VIRGIN MEDIA BUSINESS,853083001/004/0820,4263.76
Department of Health,Leicestershire Partnership NHS Trust,21/08/20,Landline Telephone Rental / Calls,"Evington Centre (P6, LPT)",VIRGIN MEDIA BUSINESS,853083001/004/0820,1861.19
Department of Health,Leicestershire Partnership NHS Trust,21/08/20,Landline Telephone Rental / Calls,HIS,VIRGIN MEDIA BUSINESS,853083001/004/0820,3846.14
Department of Health,Leicestershire Partnership NHS Trust,21/08/20,Landline Telephone Rental / Calls,"Hawthorne Centre - Coalville (P14, LPT)",VIRGIN MEDIA BUSINESS,853083001/004/0820,544.86
Department of Health,Leicestershire Partnership NHS Trust,21/08/20,Landline Telephone Rental / Calls,Hinckley & District Hospital (PROPCO),VIRGIN MEDIA BUSINESS,853083001/004/0820,1310.60
Department of Health,Leicestershire Partnership NHS Trust,21/08/20,Landline Telephone Rental / Calls,"Hinckley and Bosworth Community Hospital (Sunnyside) (P133, LPT)",VIRGIN MEDIA BUSINESS,853083001/004/0820,1082.50
Department of Health,Leicestershire Partnership NHS Trust,21/08/20,Landline Telephone Rental / Calls,Hood Park Leisure Centre Clinic,VIRGIN MEDIA BUSINESS,853083001/004/0820,23.22
Department of Health,Leicestershire Partnership NHS Trust,21/08/20,Landline Telephone Rental / Calls,"Hynca Lodge (P33, LPT)",VIRGIN MEDIA BUSINESS,853083001/004/0820,420.59
Department of Health,Leicestershire Partnership NHS Trust,21/08/20,Landline Telephone Rental / Calls,"Legion House, Ashby",VIRGIN MEDIA BUSINESS,853083001/004/0820,80.33
Department of Health,Leicestershire Partnership NHS Trust,21/08/20,Landline Telephone Rental / Calls,Loughborough Health Centre (PROPCO),VIRGIN MEDIA BUSINESS,853083001/004/0820,6.88
Department of Health,Leicestershire Partnership NHS Trust,21/08/20,Landline Telephone Rental / Calls,"Loughborough Hospital (P136, LPT)",VIRGIN MEDIA BUSINESS,853083001/004/0820,5257.82
Department of Health,Leicestershire Partnership NHS Trust,21/08/20,Landline Telephone Rental / Calls,Mawson House (LPT),VIRGIN MEDIA BUSINESS,853083001/004/0820,610.12
Department of Health,Leicestershire Partnership NHS Trust,21/08/20,Landline Telephone Rental / Calls,Melbourne Centre (Pt Grnd flr) (PROPCO),VIRGIN MEDIA BUSINESS,853083001/004/0820,6.45
Department of Health,Leicestershire Partnership NHS Trust,21/08/20,Landline Telephone Rental / Calls,Melton Mowbray Hospital (previously St. Mary's) (PROPCO),VIRGIN MEDIA BUSINESS,853083001/004/0820,1810.91
Department of Health,Leicestershire Partnership NHS Trust,21/08/20,Landline Telephone Rental / Calls,Merlyn Vaz Centre (CHP),VIRGIN MEDIA BUSINESS,853083001/004/0820,-772.42
Department of Health,Leicestershire Partnership NHS Trust,21/08/20,Landline Telephone Rental / Calls,"Mett Centre (P49, LPT)",VIRGIN MEDIA BUSINESS,853083001/004/0820,77.40
Department of Health,Leicestershire Partnership NHS Trust,21/08/20,Landline Telephone Rental / Calls,NSPCC Training Cente,VIRGIN MEDIA BUSINESS,853083001/004/0820,159.96
Department of Health,Leicestershire Partnership NHS Trust,21/08/20,Landline Telephone Rental / Calls,New Parks Health Centre (PROPCO),VIRGIN MEDIA BUSINESS,853083001/004/0820,1656.46
Department of Health,Leicestershire Partnership NHS Trust,21/08/20,Landline Telephone Rental / Calls,"OSL House (P54, LPT)",VIRGIN MEDIA BUSINESS,853083001/004/0820,3309.89
Department of Health,Leicestershire Partnership NHS Trust,21/08/20,Landline Telephone Rental / Calls,"Orchard Resource Centre (P15, LPT)",VIRGIN MEDIA BUSINESS,853083001/004/0820,816.08
Department of Health,Leicestershire Partnership NHS Trust,21/08/20,Landline Telephone Rental / Calls,Pasley Road Health Centre (PROPCO),VIRGIN MEDIA BUSINESS,853083001/004/0820,138.08
Department of Health,Leicestershire Partnership NHS Trust,21/08/20,Landline Telephone Rental / Calls,"Prince Philip House (P96, LPT)",VIRGIN MEDIA BUSINESS,853083001/004/0820,1609.02
Department of Health,Leicestershire Partnership NHS Trust,21/08/20,Landline Telephone Rental / Calls,Rushey Mead Health Centre (PROPCO),VIRGIN MEDIA BUSINESS,853083001/004/0820,97.36
Department of Health,Leicestershire Partnership NHS Trust,21/08/20,Landline Telephone Rental / Calls,"Shepshed Health Centre (P123, LPT)",VIRGIN MEDIA BUSINESS,853083001/004/0820,8.40
Department of Health,Leicestershire Partnership NHS Trust,21/08/20,Landline Telephone Rental / Calls,"Springfield Road Health Centre (P92, LPT)",VIRGIN MEDIA BUSINESS,853083001/004/0820,443.35
Department of Health,Leicestershire Partnership NHS Trust,21/08/20,Landline Telephone Rental / Calls,"St Peters Health Center (Part 1st and 2nd floors) (P66, LPT)",VIRGIN MEDIA BUSINESS,853083001/004/0820,1832.26
Department of Health,Leicestershire Partnership NHS Trust,21/08/20,Landline Telephone Rental / Calls,"Stewart House (P61, LPT)",VIRGIN MEDIA BUSINESS,853083001/004/0820,7.74
Department of Health,Leicestershire Partnership NHS Trust,21/08/20,Landline Telephone Rental / Calls,"Swithland House - London Road 352 (P44, LPT)",VIRGIN MEDIA BUSINESS,853083001/004/0820,469.15
Department of Health,Leicestershire Partnership NHS Trust,21/08/20,Landline Telephone Rental / Calls,"The Cedars (P19, LPT)",VIRGIN MEDIA BUSINESS,853083001/004/0820,838.28
Department of Health,Leicestershire Partnership NHS Trust,21/08/20,Landline Telephone Rental / Calls,"The Willows - Cordelia Close (P22, LPT)",VIRGIN MEDIA BUSINESS,853083001/004/0820,476.65
Department of Health,Leicestershire Partnership NHS Trust,21/08/20,Landline Telephone Rental / Calls,Uppingham Road Health Centre (PROPCO),VIRGIN MEDIA BUSINESS,853083001/004/0820,312.32
Department of Health,Leicestershire Partnership NHS Trust,21/08/20,Landline Telephone Rental / Calls,"Valentine Centre (P3, LPT)",VIRGIN MEDIA BUSINESS,853083001/004/0820,2459.98
Department of Health,Leicestershire Partnership NHS Trust,21/08/20,Landline Telephone Rental / Calls,Warren Park Way 25 (PROPCO),VIRGIN MEDIA BUSINESS,853083001/004/0820,786.29
Department of Health,Leicestershire Partnership NHS Trust,21/08/20,Landline Telephone Rental / Calls,"Westcotes Group -Westcotes House (P78, LPT)",VIRGIN MEDIA BUSINESS,853083001/004/0820,1959.19
Department of Health,Leicestershire Partnership NHS Trust,21/08/20,Landline Telephone Rental / Calls,Westcotes Health Centre (CHP),VIRGIN MEDIA BUSINESS,853083001/004/0820,851.94
Department of Health,Leicestershire Partnership NHS Trust,21/08/20,Landline Telephone Rental / Calls,"Winstanley Drive Health Centre (P8, LPT)",VIRGIN MEDIA BUSINESS,853083001/004/0820,495.26
Department of Health,Leicestershire Partnership NHS Trust,21/08/20,Network Costs - WAN Maint,HIS Infrastructure,VIRGIN MEDIA BUSINESS,262421-171,41181.47
Department of Health,Leicestershire Partnership NHS Trust,24/08/20,Internal Printing (machines and ink),Estates & Facilities Central,LEXMARK INTERNATIONAL LTD,900650008769,32923.97
Department of Health,Leicestershire Partnership NHS Trust,24/08/20,Nurse - Band 6 -Agency,CAMHS Waiting List Monies,HCL SOCIAL CARE,SI0001266,24223.41
Department of Health,Leicestershire Partnership NHS Trust,24/08/20,Pathology Service,Children Services Medical,UHL NHS TRUST (RWE),L0243948,37269.91
Department of Health,Leicestershire Partnership NHS Trust,24/08/20,Pathology Service,UHL Expenditure Contract,UHL NHS TRUST (RWE),L0243948,81015.28
Department of Health,Leicestershire Partnership NHS Trust,26/08/20,CHP Estates Management,Belgrave Health Centre (CHP),COMM HLTH PARTNERSHIPS LTD,0060164802,10177.69
Department of Health,Leicestershire Partnership NHS Trust,26/08/20,CHP Estates Management,Merlyn Vaz Centre (CHP),COMM HLTH PARTNERSHIPS LTD,0060164802,60652.57
Department of Health,Leicestershire Partnership NHS Trust,26/08/20,CHP Estates Management,"St Peters Health Center (Part 1st and 2nd floors) (P66, LPT)",COMM HLTH PARTNERSHIPS LTD,0060164802,9458.26
Department of Health,Leicestershire Partnership NHS Trust,26/08/20,CHP Estates Management,Westcotes Health Centre (CHP),COMM HLTH PARTNERSHIPS LTD,0060164802,12551.16
Department of Health,Leicestershire Partnership NHS Trust,27/08/20,Computer Hardware,COVID 19,DELL COMPUTERS,7402638812,45000.00
Department of Health,Leicestershire Partnership NHS Trust,27/08/20,WIP Project Not in BS - Buildings excl Dwellings,Work in Progress,INTERSERVE CONSTRUCTION LTD,TMP00525,625022.24
Department of Health,Leicestershire Partnership NHS Trust,28/08/20,Rent,"OSL House (P54, LPT)",CABOT TRUSTEES LTD,061,41700.00
